Cogmind - Beta 16 @@@ ROGUE MODE // 2026.01.09 @ 22:09:29 Player: Cube_41 Result: Destroyed by S-43 Plague with Heavy Machine Gun Performance ------------- Evolutions (6) 3000 Regions Visited (14) 2800 Robots Destroyed (183) 915 Value Destroyed (6151) 6151 Prototype IDs (51) 1020 Alien Tech Used (0) 0 Bonus (2409) 2409 TOTAL SCORE: 16295 Bonus ------- High Alert Combat Kills 571 Follower Combat Kills 350 Aligned with FarCom 300 Met Warlord at Base 500 MAIN.C Attacked Warlord 500 Warlord Defense Kills 188 Cogmind --------- Core Integrity 0/1150 Matter 280/300 Energy 168/170 System Corruption 0% Temperature Cool (4) Movement Flying (34) Location -3/Proximity Caves Parts ------- > --- POWER (1) -------- Light Antimatter Reactor > --- PROPULSION (5) --- Xenon Bombardment Thruster Cooled Cesium-ion Thruster > --- UTILITY (11) ----- Makeshift Terrain Scan Processor Advanced Terrain Scan Processor Modified TNC Improved Hacking Suite Improved System Shield > --- WEAPON (2) ------- (None) > --- INVENTORY (5) ---- Neutrino Core RU-N14's Throwing Claymores v3 (5) RU-N14's Throwing Claymores v3 (4) RU-N14's Throwing Claymores v3 (4) Peak State ------------ > --- POWER ------------ Light Antimatter Reactor > --- PROPULSION ------- Cooled Cesium-ion Thruster Cooled Cesium-ion Thruster Cooled Cesium-ion Thruster Field Propulsion Array > --- UTILITY ---------- Small Storage Unit Makeshift Terrain Scan Processor Advanced Terrain Scan Processor Advanced Terrain Scan Processor Modified TNC Improved Cloaking Device Layered Light Armor Plating Improved Hacking Suite Advanced Hacking Suite System Shield Improved System Shield > --- WEAPON ----------- RU-N14's Throwing Claymores v3 Lance > --- INVENTORY -------- Long-range Terrain Scanner Advanced Transmission Jammer ECM Suite RU-N14's Throwing Claymores v3 RU-N14's Throwing Claymores v3 RU-N14's Throwing Claymores v3 RU-N14's Throwing Claymores v3 RU-N14's Throwing Claymores v3 [Rating: 109] Favorites ----------- Power Micro Nuclear Core Engine Light Ion Engine Power Core Micro Nuclear Core Reactor Light Antimatter Reactor Propulsion Light Treads Treads Light Treads Leg Aluminum Leg Wheel Wheel Hover Unit Aerolev Unit Flight Unit Improved Cesium-ion Thruster Utility Advanced Terrain Scan Processor Device Advanced Terrain Scanner Storage Small Storage Unit Processor Advanced Terrain Scan Processor Hackware System Shield Protection Hardened Medium Armor Plating Weapon Lance Energy Gun Beamcaster Energy Cannon Cooled Particle Cannon Ballistic Gun Assault Rifle Ballistic Cannon Advanced Assault Cannon Launcher Long-range Missile Launcher Special Weapon Mining Laser Impact Weapon Powered Hammer Piercing Weapon Lance Special Melee Weapon Dirty Datajack Build | -11 -10 -10 -10 -9 -8 -8 -7 -6 -5 -4 -4 -4 -4 -3 ------- Run | Yrd Mat Min Exi Min Mat Sto Fac Fac Fac Fac Upp Upp War Pro Slots Evolved 12 | . . . . . 4 . 2 2 2 2 . . . . Power . | . . . . . . . . . . . . . . . Propulsion 3 | . . . . . 2 . . . . 1 . . . . Utility 9 | . . . . . 2 . 2 2 2 1 . . . . Weapon . | . . . . . . . . . . . . . . . Parts Attached 183 | 6 7 5 . 6 36 . 40 37 16 14 3 1 5 7 Power 25 | 1 2 1 . 1 2 . 4 6 3 1 . 1 1 2 Engine 6 | 1 2 1 . . . . 2 . . . . . . . Core 15 | . . . . 1 2 . 2 5 3 . . . 1 1 Reactor 4 | . . . . . . . . 1 . 1 . 1 . 1 Propulsion 52 | 2 2 . . 3 14 . 14 7 2 3 . . 1 4 Treads 17 | 2 . . . . . . 14 1 . . . . . . Leg 5 | . . . . 1 4 . . . . . . . . . Wheel 9 | . 2 . . 2 5 . . . . . . . . . Hover 5 | . . . . . 5 . . . . . . . . . Flight 16 | . . . . . . . . 6 2 3 . . 1 4 Utility 66 | 1 3 . . 1 12 . 10 19 10 9 1 . . . Device 32 | . . . . . 7 . 2 9 7 7 . . . . Storage 6 | 1 2 . . . 2 . . 1 . . . . . . Processor 11 | . 1 . . 1 1 . 1 4 1 1 1 . . . Hackware 8 | . . . . . . . 2 4 2 . . . . . Protection 9 | . . . . . 2 . 5 1 . 1 . . . . Artifact . | . . . . . . . . . . . . . . . Weapon 40 | 2 . 4 . 1 8 . 12 5 1 1 2 . 3 1 Energy Gun 8 | . . 2 . 1 3 . 2 . . . . . . . Energy Cannon 7 | . . . . . 2 . 4 1 . . . . . . Ballistic Gun 5 | 2 . 1 . . . . 2 . . . . . . . Ballistic Cannon 3 | . . . . . . . 2 1 . . . . . . Launcher 7 | . . . . . 2 . 1 1 1 1 1 . . . Special Weapon 4 | . . 1 . . . . . . . . . . 3 . Impact Weapon 3 | . . . . . 1 . 1 1 . . . . . . Slashing Weapon . | . . . . . . . . . . . . . . . Piercing Weapon 2 | . . . . . . . . 1 . . . . . 1 Special Melee Weapon 1 | . . . . . . . . . . . 1 . . . Unidentified Prototypes 15 | . . . . . 5 . 3 3 1 2 . . 1 . Corrupted Parts 3 | . . . . . 2 . 1 . . . . . . . System Corruption 8 | . . . . . 6 . 2 . . . . . . . Parts Lost 59 | . 1 5 . 2 14 1 7 1 4 3 . 4 7 10 Power 13 | . 1 2 . 1 1 . 2 1 2 . . 1 1 1 Propulsion 23 | . . . . 1 8 1 3 . . 2 . 2 2 4 Utility 14 | . . . . . 3 . 2 . 1 . . 1 4 3 Weapon 9 | . . 3 . . 2 . . . 1 1 . . . 2 Highest Loss Streak 8 | . 1 4 . 2 8 1 4 1 1 3 . 4 7 8 To Critical Strikes . | . . . . . . . . . . . . . . . Average Backups 11 | 1 5 15 18 17 19 13 13 7 7 7 7 7 6 4 Power . | . . . 1 . . 1 1 . . . 1 . . . Propulsion 2 | . . 4 6 4 3 . 1 3 3 2 2 1 . . Utility 6 | . 3 8 10 11 12 12 7 2 3 3 4 3 2 . Weapon 1 | . 1 1 1 1 2 . 2 . . . . 1 3 3 Tool/Special . | . . . . . . . . . . . . . . . Unused Backups 38 | . . . . 1 9 . 13 7 2 3 . . 1 2 Power 3 | . . . . . 1 . 2 . . . . . . . Propulsion 4 | . . . . . . . . 4 . . . . . . Utility 26 | . . . . . 8 . 10 3 2 3 . . . . Weapon 5 | . . . . 1 . . 1 . . . . . 1 2 Tool/Special . | . . . . . . . . . . . . . . . Average Slot Usage (%) 93 | . 97 99 100 95 90 89 97 93 93 86 89 93 91 55 Engine 2 | . 14 13 14 . . . 1 . . . . . . . Core 4 | . . . . 12 8 9 5 3 4 2 . . . 3 Treads 12 | . 25 22 28 1 . . 28 6 . . . . . . Wheel 4 | . 1 5 . 25 25 . . . . . . . . . Flight 8 | . . . . . . . . 19 22 20 21 21 18 9 Device 4 | . . . . . 9 9 . 7 11 10 8 7 4 4 Storage 7 | . 14 14 14 14 8 9 7 2 5 5 5 5 4 . Processor 15 | . 12 14 14 11 9 18 15 22 17 15 18 21 20 15 Hackware 8 | . . . . . . . 1 12 22 21 21 21 21 19 Protection 6 | . . . . . 7 . 19 3 . 2 2 1 4 . Energy Gun 3 | . . 12 14 15 10 . 1 . . . . . . . Energy Cannon 2 | . . . . . 4 . 4 3 . . . . . . Ballistic Gun 3 | . 28 5 . 12 . . 2 . . . . . . . Ballistic Cannon 1 | . . . . . . . 5 . . . . . . . Special Weapon 1 | . . 10 14 . . . . . . . . . 2 . Piercing Weapon 1 | . . . . . . . . 2 4 4 5 5 4 1 Peak Build Rating 109 | 6 9 16 17 26 46 40 57 72 83 106 105 105 109 70 Average Rating 51 | 4 8 13 16 20 33 39 45 66 75 87 98 102 102 58 On Entrance 47 | . 6 9 16 17 26 40 36 57 67 77 99 105 96 55 Avg Prop Armor Cover (%) 6 | . . . . . 4 . 4 7 3 9 11 . . . Naked Turns . | . . . . . . . . . . . . . . . Heaviest Build 108 | 14 49 49 49 59 108 30 77 82 26 29 29 26 35 16 Greatest Support 112 | 40 40 40 40 20 52 32 112 104 26 35 33 35 35 20 Greatest Overweight (x) 20 | . 1 1 1 2 20 1 1 4 . . . . 1 1 Average Overweight (x) . | . . 1 1 2 1 . . . . . . . . . Largest Inventory Capacity 25 | 8 20 20 20 20 25 15 15 15 8 8 8 8 8 5 Average Capacity 13 | 6 9 20 20 20 23 15 15 8 8 8 8 8 7 5 Most Carried 25 | 2 13 19 20 20 25 13 15 15 8 8 8 8 8 5 Average Carried 11 | 1 5 16 19 18 20 13 14 7 7 7 7 6 6 4 Final Capacity 20 | 8 20 20 20 20 15 15 15 8 8 8 8 8 5 5 Final Carried 20 | 2 13 19 20 20 13 13 14 8 8 8 8 5 5 4 Class Distribution -------------------- 36% | Mutant 23% | Scavenger-Mutant 20% | Hacker-Scout 8% | Hacker-Sprinter 4% | Hacker-Ninja 3% | Hacker-Assassin Dominant Class ---------------- Mutant | -10/Materials Mutant | -10/Mines Mutant | -10/Exiles Scavenger-Mutant | -9/Mines Mutant | -8/Materials Mutant | -8/Storage Scavenger-Mutant | -7/Factory Hacker-Scout | -6/Factory Hacker-Scout | -5/Factory Hacker-Scout | -4/Factory Hacker-Scout | -4/Upper Caves Hacker-Sprinter | -4/Upper Caves Hacker-Sprinter | -4/Warlord Hacker-Mutant | -3/Proximity Caves Resources | -11 -10 -10 -10 -9 -8 -8 -7 -6 -5 -4 -4 -4 -4 -3 ----------- Run | Yrd Mat Min Exi Min Mat Sto Fac Fac Fac Fac Upp Upp War Pro Matter Collected 5022 | 241 365 145 . 93 703 10 1705 790 369 216 270 . 70 45 Remotely . | . . . . . . . . . . . . . . . Salvage Created 6862 | . 348 118 . 133 2088 25 2315 877 435 387 . . 61 75 Parts 348 | . 34 4 . 5 105 . 112 41 17 17 . . 5 8 Haulers Intercepted 10 | . . . . . 4 . 1 2 3 . . . . . Recyclers Shooed 4 | . . . . . . . 4 . . . . . . . Parts Field Recycled . | . . . . . . . . . . . . . . . Retrieved Matter . | . . . . . . . . . . . . . . . Parts Self-Destructed 11 | . . . . . . . . . . . 5 . . 6 Prevented 1 | . . . . . . . . . . . . . . 1 Parts Restored . | . . . . . . . . . . . . . . . Kills | -11 -10 -10 -10 -9 -8 -8 -7 -6 -5 -4 -4 -4 -4 -3 ------- Run | Yrd Mat Min Exi Min Mat Sto Fac Fac Fac Fac Upp Upp War Pro Combat Hostiles Destroyed 121 | . 13 4 . 3 32 . 52 9 3 1 . . 2 2 Melee 6 | . . . . . 1 . 1 . 2 . . . . 2 Guns 44 | . 13 4 . 3 13 . 11 . . . . . . . Cannons 45 | . . . . . 7 . 32 5 . . . . 1 . AOE 21 | . . . . . 7 . 7 4 1 1 . . 1 . Classes Destroyed 20 | . 4 2 . . 9 . 5 . . . . . . . Worker 10 | . . . . . 2 . 1 4 3 . . . . . Builder 13 | . . . . . 4 1 2 5 1 . . . . . Tunneler 1 | . . . . . 1 . . . . . . . . . Hauler 10 | . . . . . 4 . 1 2 3 . . . . . Recycler 9 | . . . . . 2 . 3 2 . 2 . . . . Mechanic 2 | . . . . . . . 1 1 . . . . . . Operator 6 | . 2 . . . . . . . 2 2 . . . . Watcher 12 | . 2 . . . 3 . 2 1 1 3 . . . . Swarmer 22 | . 8 . . . 3 . 3 4 . 1 . . 1 2 Cutter 3 | . . . . . 3 . . . . . . . . . Grunt 61 | . 5 2 . 3 19 . 27 3 1 . . . 1 . Brawler 1 | . . . . . . . 1 . . . . . . . Duelist 1 | . . . . . . . 1 . . . . . . . Sentry 9 | . . . . . 4 . 5 . . . . . . . Demolisher 1 | . . 1 . . . . . . . . . . . . Specialist 2 | . . . . . . . 2 . . . . . . . Hunter 6 | . . . . . 2 . 4 . . . . . . . Programmer 12 | . . . . . . . 8 2 2 . . . . . Heavy 2 | . . . . . 1 . 1 . . . . . . . Assembled 1 | . . 1 . . . . . . . . . . . . Best Kill Streak 19 | . 5 2 . 2 19 1 5 8 3 2 . . 2 1 Combat Bots Only 14 | . 5 2 . 2 14 . 5 3 1 1 . . 2 1 Max Kills in Single Turn 5 | . 1 1 . 1 3 1 4 5 2 2 . . 2 1 Gunslinging . | . . . . . . . . . . . . . . . Exploded 3 | . . . . . 2 . 3 1 1 1 . . 1 . Melee 1 | . . . . . 1 . 1 . 1 . . . . 1 Uniques/NPCs Destroyed . | . . . . . . . . . . . . . . . Combat | -11 -10 -10 -10 -9 -8 -8 -7 -6 -5 -4 -4 -4 -4 -3 -------- Run | Yrd Mat Min Exi Min Mat Sto Fac Fac Fac Fac Upp Upp War Pro Hostile Shots Fired 1052 | . 62 29 . 22 193 34 356 46 63 27 16 31 76 97 Missed 384 | . 15 3 . 7 63 18 121 20 33 8 9 17 39 31 Hits 668 | . 47 26 . 15 130 16 235 26 30 19 7 14 37 66 Melee 8 | . . . . . 7 . 1 . . . . . . . Projectile 660 | . 47 26 . 15 123 16 234 26 30 19 7 14 37 66 AOE 12 | . . 11 . . 1 . . . . . . . . . Critical Strikes 30 | . 1 . . . 8 2 7 2 1 1 3 . 4 1 Actively Blocked 2 | . . . . . 1 . . 1 . . . . . . Part Disruptions 1 | . . . . . . . . . 1 . . . . . Damage Taken 10954 | . 420 630 . 221 1954 254 3214 552 849 348 136 299 802 1275 Core 2599 | . 62 167 . 14 506 27 169 123 373 42 13 46 211 846 Absorbed by Shields 143 | . . . . . 20 . 96 . 27 . . . . . Redirected to Shielding 84 | . . . . . 35 . . 49 . . . . . . Ignored by Resistances 26 | . . . . . . . . 26 . . . . . . Regen/Repaired (Parts) 675 | . 152 . . . . . 347 49 85 30 . . 12 . Core Remaining (%) 54 | 100 . . . 2 . 3 75 85 62 . . . . . Volleys Fired 346 | . 51 16 . 11 82 . 143 20 17 2 . . 4 . Largest 2 | . 2 2 . 2 2 . 2 2 1 1 . . 1 . Hottest 180 | . 40 120 . 95 144 . 180 75 43 46 . . . . Shots Fired 618 | . 102 31 . 22 143 . 268 28 18 2 . . 4 . Gun 319 | . 102 30 . 22 88 . 77 . . . . . . . Cannon 246 | . . . . . 43 . 184 19 . . . . . . Launcher 48 | . . . . . 12 . 7 9 18 2 . . . . Special 5 | . . 1 . . . . . . . . . . 4 . Kinetic 290 | . 102 20 . 11 . . 157 . . . . . . . Thermal 149 | . . 1 . 11 30 . 93 14 . . . . . . Explosive 38 | . . . . . 1 . 7 9 17 . . . 4 . Electromagnetic 141 | . . 10 . . 112 . 11 5 1 2 . . . . Robot Hit Streak 18 | . 11 8 . 18 14 . 15 6 4 . . . . . Robot Miss Streak 4 | . 3 3 . 1 4 . 4 2 1 2 . . . . Penetration Max 1 | . . . . . . . 1 . . . . . . . Secondary Targets 5 | . 2 . . 1 2 . . . . . . . . . Max Gunslinging Chain 1 | . 1 . . 1 1 . . . . . . . . . Shots Hit Robots 460 | . 60 21 . 18 104 1 191 27 21 9 . . . 8 Core Hits 298 | . 25 8 . 5 74 . 116 31 20 8 . . 7 4 Critical Kills . | . . . . . . . . . . . . . . . Critical Parts Destroyed 7 | . 2 . . . 3 . 1 1 . . . . . . Critical Strikes 23 | . 2 . . . 5 . 11 1 3 . . . . 1 Burn 2 | . . . . . 2 . . . . . . . . . Destroy 2 | . 2 . . . . . . . . . . . . . Blast 10 | . . . . . . . 10 . . . . . . . Smash 5 | . . . . . 3 . 1 1 . . . . . . Impale 4 | . . . . . . . . . 3 . . . . 1 Melee Attacks 185 | . . . . . 10 11 12 35 74 28 1 . . 14 Impact 49 | . . . . . 10 11 12 16 . . . . . . Slashing . | . . . . . . . . . . . . . . . Piercing 136 | . . . . . . . . 19 74 28 1 . . 14 Sneak Attacks 14 | . . . . . . 1 1 5 5 2 . . . . Combat Hostiles . | . . . . . . . . . . . . . . . Follow-up Attacks . | . . . . . . . . . . . . . . . Damage Inflicted 17388 | . 828 261 . 304 3485 104 6315 2315 2045 720 . . 742 269 Guns 3734 | . 816 261 . 304 1182 . 1171 . . . . . . . Cannons 4641 | . . . . . 853 . 3425 363 . . . . . . Explosions 5469 | . . . . . 1051 . 1221 1083 1205 211 . . 698 . Melee 3448 | . . . . . 399 104 458 869 840 509 . . . 269 Ramming 52 | . 12 . . . . . 40 . . . . . . . Kinetic 3880 | . 816 187 . 113 . . 2764 . . . . . . . Thermal 3243 | . . . . 191 819 . 1998 198 . 37 . . . . Explosive 3889 | . . . . . 68 . 835 1083 1205 . . . 698 . Electromagnetic 2832 | . . 74 . . 2199 . 220 165 . 174 . . . . Impact 1762 | . . . . . 399 104 458 801 . . . . . . Slashing 44 | . . . . . . . . . . . . . 44 . Piercing 1686 | . . . . . . . . 68 840 509 . . . 269 Highest Corruption 9 | . . . . . 9 9 7 2 5 1 2 2 2 . Average Corruption 4 | . . . . . 6 9 4 1 4 1 1 2 2 . Corruption Purged . | . . . . . . . . . . . . . . . Corruption Blocked . | . . . . . . . . . . . . . . . Effects 182 | . . . . . 33 4 88 18 27 5 7 . . . Message Errors 32 | . . . . . 3 1 16 4 5 1 2 . . . Matter Fused 52 | . . . . . 7 . 33 5 3 3 1 . . . Heat Flow Errors 27 | . . . . . 5 1 12 2 6 . 1 . . . Energy Discharges 21 | . . . . . 4 1 7 3 4 1 1 . . . Parts Rejected 4 | . . . . . 1 1 . . 2 . . . . . Parts Fused 2 | . . . . . 1 . 1 . . . . . . . Data Loss (minor) 22 | . . . . . 7 . 9 . 5 . 1 . . . Data Loss (major) 9 | . . . . . 1 . 4 2 1 . 1 . . . Misfires 7 | . . . . . 1 . 4 1 1 . . . . . Alerts 2 | . . . . . 1 . . 1 . . . . . . Weapon Failures 4 | . . . . . 2 . 2 . . . . . . . Overload Shots 2 | . . . . . . . 2 . . . . . . . Overflow Damage 1406 | . . . . . 285 74 247 270 419 75 . . 36 . Projectiles 102 | . . . . . 11 . 85 6 . . . . . . Explosions 251 | . . . . . 36 . 100 48 16 15 . . 36 . Melee 1053 | . . . . . 238 74 62 216 403 60 . . . . Knockbacks 22 | . . . . . 6 . 12 4 . . . . . . Impact 12 | . . . . . 5 . 3 4 . . . . . . Kinetic 8 | . . . . . . . 8 . . . . . . . Secondary 2 | . . . . . 1 . 1 . . . . . . . Self-Inflicted Damage 675 | . . . . . 102 . 224 89 238 22 . . . . Shots 18 | . . . . . 5 . 5 2 4 2 . . . . Rammed 5 | . 3 . . . . . 2 . . . . . . . Targets Rammed 8 | . 4 . . . . . 4 . . . . . . . Kicked . | . . . . . . . . . . . . . . . Crushed 3 | . 1 . . . . . 2 . . . . . . . Highest Temperature 428 | . 20 36 . 323 428 283 393 275 264 . 272 . 36 . Average Temperature 90 | . 8 22 . 168 95 113 91 37 91 . 107 . 11 . Received Heat Transfer 2385 | . 99 78 . 129 695 99 852 99 45 . 54 42 193 . Effects 15 | . . . . . 3 . 11 . 1 . . . . . Shutdowns 3 | . . . . . 2 . 1 . . . . . . . Energy Bleed 3 | . . . . . 1 . 1 . 1 . . . . . Interference 9 | . . . . . . . 9 . . . . . . . Siege Activations . | . . . . . . . . . . . . . . . Martial Activations . | . . . . . . . . . . . . . . . Shielding Activations . | . . . . . . . . . . . . . . . Robots Disrupted 1 | . . . . . . . 1 . . . . . . . Combat Hostiles 1 | . . . . . . . 1 . . . . . . . Robots Corrupted 9 | . . . . . 5 1 1 2 . . . . . . Combat Hostiles 5 | . . . . . 4 . 1 . . . . . . . Parts Fried 22 | . . . . . 16 3 . 3 . . . . . . Impact Corruptions 22 | . . . . . 8 3 2 9 . . . . . . Robots Melted . | . . . . . . . . . . . . . . . Combat Hostiles . | . . . . . . . . . . . . . . . Parts Melted 8 | . . . . . 3 . 5 . . . . . . . Heat Transferred 4736 | . . . . 333 1364 . 2767 222 . 50 . . . . Parts Sabotaged . | . . . . . . . . . . . . . . . Parts Stolen . | . . . . . . . . . . . . . . . Parts Stripped . | . . . . . . . . . . . . . . . Power Chain Reactions 9 | . . . . . 7 . 1 . . 1 . . . . Alert | -11 -10 -10 -10 -9 -8 -8 -7 -6 -5 -4 -4 -4 -4 -3 ------- Run | Yrd Mat Min Exi Min Mat Sto Fac Fac Fac Fac Upp Upp War Pro Maximum Alert Level 4 | . . . . . 2 2 4 2 2 . . . . . Low Security (%) 53 | 100 100 100 . 100 36 . 12 24 92 100 . . . . Level 1 28 | . . . . . 54 75 58 22 6 . . . . . Level 2 14 | . . . . . 8 24 19 52 . . . . . . Level 3 1 | . . . . . . . 6 . . . . . . . Level 4 . | . . . . . . . 2 . . . . . . . Level 5 . | . . . . . . . . . . . . . . . High Security . | . . . . . . . . . . . . . . . Max Security . | . . . . . . . . . . . . . . . Peak Influence 1105 | . 130 80 . 50 575 426 1105 537 436 72 . . . . Initial 537 | . . . . . . 240 179 537 152 30 . . . . Average 214 | . 41 15 . 5 244 335 389 333 84 15 . . . . Influence Increases 6109 | . 383 220 . 70 1147 285 1754 763 1028 234 15 . 85 125 Destroy 0b10 Robot/C 2660 | . 260 120 . 60 640 120 1040 220 100 20 . . 40 40 Destroy 0b10 Robot/NC 315 | . 20 . . . 80 5 50 80 50 30 . . . . Destroy Leader 684 | . 64 30 . 10 164 40 276 46 38 6 . . . 10 Allied During Kill 42 | . . 10 . . . 21 . 2 9 . . . . . Successful Hack 268 | . 23 . . . 12 . 33 93 85 22 . . . . Disable Machine 345 | . . 45 . . 30 . 150 45 60 15 . . . . Destroy Structure 760 | . 1 . . . 41 9 100 97 476 36 . . . . Partial Spotted 210 | . . . . . . 45 . 75 60 30 . . . . Lose Combat Pursuer 825 | . 15 15 . . 180 45 105 105 150 75 15 . 45 75 Influence Decreases 6078 | . 383 195 25 70 577 460 1051 1549 1276 281 32 . 85 94 Entered New Map 1334 | . . . 25 . . 330 216 561 160 34 8 . . . Time Decay 3382 | . 363 165 . 60 437 80 765 638 592 210 24 . 24 24 Lost Part 461 | . 10 10 . 10 140 10 70 10 40 30 . . 61 70 Lost Ally 170 | . 10 20 . . . 40 . 40 60 . . . . . Purge Threat 731 | . . . . . . . . 300 424 7 . . . . Squads Dispatched 87 | . 2 . . . 11 5 24 14 25 6 . . . . Investigation 33 | . 1 . . . 3 1 8 7 9 4 . . . . Extermination 19 | . . . . . . . 7 5 5 2 . . . . Reinforcement 23 | . 1 . . . 7 2 6 2 5 . . . . . Assault 5 | . . . . . 1 2 . . 2 . . . . . Garrison 7 | . . . . . . . 3 . 4 . . . . . Intercept . | . . . . . . . . . . . . . . . Searches Triggered . | . . . . . . . . . . . . . . . Unchained Authorized 2 | . . . . . . . . . . 1 1 . . . Construction Impeded 5 | . . . . . 2 . 1 . 2 . . . . . Haulers Reinforced 3 | . . . . . . . 1 1 1 . . . . . Active Scanning Responses . | . . . . . . . . . . . . . . . Cargo Convoy Interrupts . | . . . . . . . . . . . . . . . Stealth | -11 -10 -10 -10 -9 -8 -8 -7 -6 -5 -4 -4 -4 -4 -3 --------- Run | Yrd Mat Min Exi Min Mat Sto Fac Fac Fac Fac Upp Upp War Pro Distress Signals 17 | . 1 . . . 4 1 2 3 2 2 . . 2 . Communications Jammed . | . . . . . . . . . . . . . . . Distress Signals . | . . . . . . . . . . . . . . . Times Spotted 301 | . 24 9 . 3 48 12 64 26 45 16 8 8 28 10 Peak Tracking Total 25 | . 5 2 . 3 5 7 4 5 7 5 5 8 25 7 Tactical Retreats 43 | . 1 1 . . 5 1 6 4 14 3 5 . 2 1 ECM-based Alert Blocks 26 | . . . . . . . . . 15 4 7 . . . Traps | -11 -10 -10 -10 -9 -8 -8 -7 -6 -5 -4 -4 -4 -4 -3 ------- Run | Yrd Mat Min Exi Min Mat Sto Fac Fac Fac Fac Upp Upp War Pro Traps Triggered 12 | . 1 . . . 2 . 5 2 2 . . . . . Indirectly 1 | . . . . . 1 . . . . . . . . . Trap Hack Attempts . | . . . . . . . . . . . . . . . Triggered . | . . . . . . . . . . . . . . . Disarmed 15 | . 6 . . . 5 . . . . 4 . . . . Reprogrammed . | . . . . . . . . . . . . . . . Reused . | . . . . . . . . . . . . . . . Traps Extracted . | . . . . . . . . . . . . . . . Installed . | . . . . . . . . . . . . . . . Triggered . | . . . . . . . . . . . . . . . Machines | -11 -10 -10 -10 -9 -8 -8 -7 -6 -5 -4 -4 -4 -4 -3 ---------- Run | Yrd Mat Min Exi Min Mat Sto Fac Fac Fac Fac Upp Upp War Pro Machines Disabled 24 | . . 3 . . 2 . 10 3 4 1 1 . . . Max in Single Turn 4 | . . 1 . . 1 . 4 1 3 1 1 . . . Garrison Access 2 | . . . . . . . 1 . 1 . . . . . Machines Repaired . | . . . . . . . . . . . . . . . Machines Dismantled . | . . . . . . . . . . . . . . . Machines Sabotaged . | . . . . . . . . . . . . . . . Overloaded Fab Kills . | . . . . . . . . . . . . . . . Hacking | -11 -10 -10 -10 -9 -8 -8 -7 -6 -5 -4 -4 -4 -4 -3 --------- Run | Yrd Mat Min Exi Min Mat Sto Fac Fac Fac Fac Upp Upp War Pro Machines Accessed 88 | . 5 . 1 1 5 4 13 20 20 13 2 . 4 . Terminals 34 | . 4 . . . 3 3 2 10 8 4 . . . . Fabricators 12 | . . . . . . . 3 3 4 2 . . . . Repair Stations 10 | . 1 . . . 1 . 3 2 2 1 . . . . Recycling Units 9 | . . . . . . 1 1 1 2 4 . . . . Scanalyzers 9 | . . . . . 1 . 2 2 2 2 . . . . Garrison Access 6 | . . . . . . . 2 2 2 . . . . . Total Hacks 369 | . 21 . 1 1 20 8 43 109 104 47 2 . 13 . Successful 212 | . 10 . 1 1 10 1 28 49 66 31 2 . 13 . Failed 155 | . 11 . . . 10 7 15 59 38 15 . . . . Catastrophic 29 | . 2 . . . 2 2 2 16 3 2 . . . . Database Lockouts 2 | . . . . . . . . 1 . 1 . . . . Manual 106 | . 7 . 1 . 7 3 3 40 32 13 . . . . Terminals 180 | . 16 . . . 14 7 5 68 53 17 . . . . Fabricators 30 | . . . . . . . 8 7 10 5 . . . . Repair Stations 40 | . 5 . . . 3 . 10 8 12 2 . . . . Recycling Units 24 | . . . . . . 1 1 4 10 8 . . . . Scanalyzers 64 | . . . . . 3 . 15 15 16 15 . . . . Garrison Access 14 | . . . . . . . 4 7 3 . . . . . Terminal Hacks 82 | . 5 . 1 1 6 . 3 27 19 5 2 . 13 . Record 16 | . . . . . . . . 5 3 . . . 8 . Part Schematic 5 | . . . . . . . 1 4 . . . . . . Prototype ID Bank 6 | . . . . . . . . 1 1 . . . 4 . Open Door 4 | . . . . 1 . . . . . . 2 . 1 . Branch Access Points 2 | . 1 . . . . . . . 1 . . . . . Emergency Access Points 4 | . . . . . 1 . 1 . 2 . . . . . Terminal Index 2 | . . . . . 1 . . 1 . . . . . . Garrison Index 1 | . . . . . . . . . 1 . . . . . Alert Level 6 | . . . . . 1 . 1 3 . 1 . . . . Unreport Threat 6 | . . . . . . . . 2 3 1 . . . . Locate Traps 6 | . 1 . . . . . . 3 2 . . . . . Disarm Traps 3 | . 1 . . . 1 . . . . 1 . . . . Dispatch Records 5 | . 1 . . . 1 . . 2 1 . . . . . Maintenance Status 1 | . . . . . . . . 1 . . . . . . Security Status 2 | . . . . . . . . 1 . 1 . . . . Recall Investigation 4 | . . . . . . . . 1 3 . . . . . Recall Reinforcements 1 | . . . . . . . . 1 . . . . . . Hauler Manifests 3 | . . . . . 1 . . . 1 1 . . . . Zone Layout 4 | . 1 . . . . . . 2 1 . . . . . Proto ID Catalog 1 | . . . 1 . . . . . . . . . . . Fabricator Hacks 19 | . . . . . . . 5 4 6 4 . . . . Load Schematic 10 | . . . . . . . 3 2 3 2 . . . . Build 9 | . . . . . . . 2 2 3 2 . . . . Repair Station Hacks 25 | . 4 . . . 1 . 6 5 7 2 . . . . Scan Component 13 | . 2 . . . 1 . 3 3 3 1 . . . . Repair 11 | . 2 . . . . . 3 2 3 1 . . . . Refit 1 | . . . . . . . . . 1 . . . . . Recycling Unit Hacks 16 | . . . . . . 1 . 3 7 5 . . . . Process 3 | . . . . . . . . 1 2 . . . . . Report Inventory 9 | . . . . . . 1 . 1 3 4 . . . . Retrieve Matter 3 | . . . . . . . . 1 2 . . . . . Retrieve Components 1 | . . . . . . . . . . 1 . . . . Scanalyzer 51 | . . . . . 3 . 13 8 16 11 . . . . Insert Component 16 | . . . . . . . 2 4 6 4 . . . . Analyze 17 | . . . . . . . 2 3 7 5 . . . . Retrieve Study 18 | . . . . . 3 . 9 1 3 2 . . . . Garrison Access Hacks 1 | . . . . . . . 1 . . . . . . . Seal Access 1 | . . . . . . . 1 . . . . . . . Unauthorized Hacks 18 | . 1 . . . . . . 2 11 4 . . . . Terminals 8 | . 1 . . . . . . 1 5 1 . . . . Track 1 | . . . . . . . . . 1 . . . . . Assimilate 6 | . 1 . . . . . . 1 3 1 . . . . Operators 1 | . . . . . . . . . 1 . . . . . Fabricators 1 | . . . . . . . . . 1 . . . . . Report 1 | . . . . . . . . . 1 . . . . . Repair Stations . | . . . . . . . . . . . . . . . Recycling Units 6 | . . . . . . . . . 3 3 . . . . Monitor 3 | . . . . . . . . . 1 2 . . . . Recyclers 3 | . . . . . . . . . 2 1 . . . . Scanalyzers . | . . . . . . . . . . . . . . . Garrison Access 3 | . . . . . . . . 1 2 . . . . . Reprogram 3 | . . . . . . . . 1 2 . . . . . Data Cores Recovered 2 | . . . . . . . . 1 . 1 . . . . Used 2 | . . . . . . . . 1 . 1 . . . . Hacking Detections 73 | . 5 . . . 5 4 12 17 18 12 . . . . Full Trace Events 31 | . 3 . . . 2 1 8 6 7 4 . . . . Feedback Events 2 | . . . . . . . 2 . . . . . . . Corruption 2 | . . . . . . . 2 . . . . . . . Feedback Blocked . | . . . . . . . . . . . . . . . Robot Schematics Acquired . | . . . . . . . . . . . . . . . Robots Built . | . . . . . . . . . . . . . . . Authchips . | . . . . . . . . . . . . . . . Time . | . . . . . . . . . . . . . . . Total Robot Build Rating . | . . . . . . . . . . . . . . . Part Schematics Acquired 20 | . . . . . . . 3 7 6 4 . . . . Parts Built 10 | . . . . . . . 2 3 3 2 . . . . Authchips . | . . . . . . . . . . . . . . . Time 724 | . . . . . . . 268 131 218 107 . . . . Total Part Build Rating 46 | . . . . . . . 8 13 15 10 . . . . Part Studies Acquired 18 | . . . . . 3 . 9 1 3 2 . . . . Parts Repaired 11 | . 2 . . . . . 3 2 3 1 . . . . Time 480 | . 52 . . . . . 86 138 148 56 . . . . Parts Recycled . | . . . . . . . . . . . . . . . Recycled Matter 270 | . . . . . . . . 24 246 . . . . . Retrieved Matter 270 | . . . . . . . . 24 246 . . . . . Retrieved Components 1 | . . . . . . . . . . 1 . . . . Parts Scanalyzed 16 | . . . . . . . 2 4 6 4 . . . . Part Schematics Acquired 15 | . . . . . . . 2 3 6 4 . . . . Parts Damaged 3 | . . . . . . . 1 2 . . . . . . Bothacking | -11 -10 -10 -10 -9 -8 -8 -7 -6 -5 -4 -4 -4 -4 -3 ------------ Run | Yrd Mat Min Exi Min Mat Sto Fac Fac Fac Fac Upp Upp War Pro Used RIF Installer . | . . . . . . . . . . . . . . . Robots Hacked . | . . . . . . . . . . . . . . . Non-combat . | . . . . . . . . . . . . . . . Combat . | . . . . . . . . . . . . . . . Robot Hacks Applied . | . . . . . . . . . . . . . . . Relay Couplers Released 7 | . . . . . . . 4 . 3 . . . . . Machine Destruction 3 | . . . . . . . . . 3 . . . . . Programmers 4 | . . . . . . . 4 . . . . . . . Fabnet Peak Effective % . | . . . . . . . . . . . . . . . Robots Rewired 1 | . . . . . . . . . 1 . . . . . Allies Hacked . | . . . . . . . . . . . . . . . Hacks Repelled . | . . . . . . . . . . . . . . . Allies | -11 -10 -10 -10 -9 -8 -8 -7 -6 -5 -4 -4 -4 -4 -3 -------- Run | Yrd Mat Min Exi Min Mat Sto Fac Fac Fac Fac Upp Upp War Pro Total Allies 11 | . 1 2 . . . 2 . 1 5 . . . . . Largest Group 2 | . 1 2 1 . . 2 . 1 2 1 . . . . Highest-Rated Group 82 | . 10 56 25 . . 62 . 37 82 10 . . . . Highest-Rated Ally 41 | . 10 31 25 . . 31 . 37 41 10 . . . . Total Orders 5 | . . . . . . . . 2 3 . . . . . FOLLOW 1 | . . . . . . . . . 1 . . . . . EXPLORE 4 | . . . . . . . . 2 2 . . . . . Ally Attacks 80 | . . 23 . . . 30 . 4 23 . . . . . Total Damage 1846 | . . 384 . . . 446 . 246 770 . . . . . Kills 15 | . . 3 . . . 6 . 3 3 . . . . . Allies Corrupted 1 | . . . . . . . . . 1 . . . . . Allies Melted . | . . . . . . . . . . . . . . . Intel | -11 -10 -10 -10 -9 -8 -8 -7 -6 -5 -4 -4 -4 -4 -3 ------- Run | Yrd Mat Min Exi Min Mat Sto Fac Fac Fac Fac Upp Upp War Pro Active Infowar (turns) 11532 | . . . . . . . 4005 2266 2597 807 410 58 781 608 Terrain 5232 | . . . . . . . . 1655 2010 804 241 . . 522 Traps 1982 | . . . . . . . . . 1391 452 139 . . . T.N.C. 11503 | . . . . . . . 4005 2237 2597 807 410 58 781 608 Triangulation 267 | . . . . . . . . . . 47 190 30 . . Cloaking 925 | . . . . . . . . . . 38 54 58 775 . Jamming 13 | . . . . . . . . . . 13 . . . . ECM 673 | . . . . . . . . . 278 292 103 . . . Robot Analysis Total . | . . . . . . . . . . . . . . . Derelict Logs Recovered 4 | . . 2 . . . . . . . . 2 . . . Drone Launches 5 | . . . . . . . . 3 2 . . . . . Drone Recoveries 1 | . . . . . . . . . 1 . . . . . Exploration | -11 -10 -10 -10 -9 -8 -8 -7 -6 -5 -4 -4 -4 -4 -3 ------------- Run | Yrd Mat Min Exi Min Mat Sto Fac Fac Fac Fac Upp Upp War Pro Turns Passed 17341 | 75 1108 1317 498 588 1779 165 4284 2266 2597 807 410 58 781 608 Spaces Moved 12673 | 44 497 540 208 113 908 264 1862 1939 2830 1227 792 216 926 307 Core 13 | 5 . . . . 1 . . 7 . . . . . . Treads 3154 | 39 447 357 208 . . . 1819 284 . . . . . . Legs 17 | . . . . . 17 . . . . . . . . . Wheels 1100 | . 50 183 . 113 754 . . . . . . . . . Hover 443 | . . . . . 136 264 43 . . . . . . . Flight 7946 | . . . . . . . . 1648 2830 1227 792 216 926 307 Fastest Speed 24 | 50 115 115 240 110 38 38 102 27 27 24 24 24 27 26 Average Speed 73 | 147 156 197 240 110 108 39 161 50 27 26 24 25 27 44 Slowest Speed 1050 | 160 240 240 240 110 1050 102 240 250 32 29 34 30 112 112 Overloaded Moves 30 | . . . . . . . . . . . . . . 30 Propulsion Burnouts . | . . . . . . . . . . . . . . . Robots Hopped 17 | . . . . . . . . 1 14 1 . . 1 . Potential Cave-ins 2 | . . . . . . 2 . . . . . . . . Cave-ins Triggered . | . . . . . . . . . . . . . . . Exploration Rate (%) 50 | 3 59 98 60 18 57 56 38 50 47 28 83 30 92 42 Regions Visited 14 Branch Regions 8 Pre-discovered Areas 2 | . . 2 . . . . . . . . . . . . Known Exits Taken 1 | . 1 . . . . . . . . . . . . . Unknown Exits Taken 13 | 1 . 1 1 1 1 1 1 1 1 1 1 1 1 . Scrap Searched 7 | . . 3 . 1 . . . . . . 2 . . 1 Spaces Dug 131 | . . . . . 1 10 3 31 70 16 . . . . Terrain Destroyed 610 | . . . . . 39 10 98 95 292 19 . . 57 . Melee 101 | . . . . . 1 10 3 17 54 16 . . . . Projectile 28 | . . . . . . . 21 6 . . . . 1 . AOE 481 | . . . . . 38 . 74 72 238 3 . . 56 . Terrain Rammed . | . . . . . . . . . . . . . . . Walls Destroyed . | . . . . . . . . . . . . . . . Machines Disabled . | . . . . . . . . . . . . . . . Actions | -11 -10 -10 -10 -9 -8 -8 -7 -6 -5 -4 -4 -4 -4 -3 --------- Run | Yrd Mat Min Exi Min Mat Sto Fac Fac Fac Fac Upp Upp War Pro Total 19682 | 51 719 756 208 554 1542 301 2840 3138 4495 1657 1002 218 1445 756 Wait 5864 | . 144 183 . 415 413 26 677 1035 1497 350 197 . 504 423 Move 12626 | 43 496 539 207 112 907 262 1861 1936 2803 1224 791 215 923 307 Hop 15 | . . . . . . . . 1 12 1 . . 1 . Pick Up 142 | 2 12 10 1 5 38 . 31 18 10 10 . . 4 1 Fast Attach 84 | 6 3 1 . 1 9 1 14 20 13 6 2 . 2 6 Attach 74 | . 1 4 . 2 22 . 10 9 10 7 1 3 2 3 Detach 28 | . . . . 1 5 . 3 6 5 4 1 . 2 1 Swap 146 | . 5 3 . 4 32 . 48 22 9 13 8 . 1 1 Drop 131 | . 3 . . 3 24 . 37 36 13 12 1 . 2 . Fire 346 | . 51 16 . 11 82 . 143 20 17 2 . . 4 . Melee 185 | . . . . . 10 11 12 35 74 28 1 . . 14 Ram . | . . . . . . . . . . . . . . . Kick . | . . . . . . . . . . . . . . . Crush 8 | . 4 . . . . . 4 . . . . . . . Escape Stasis 21 | . . . . . . 1 . . 20 . . . . . Rewire 12 | . . . . . . . . . 12 . . . . . Trap . | . . . . . . . . . . . . . . . Miscellaneous . | . . . . . . . . . . . . . . . Route ------- -11/Scrapyard -10/Materials (discovered 4 exits: [*Mat x2] / *Min x2) -10/Mines (discovered 3 exits: [*Mat x2] / *Exi) -10/Exiles -9/Mines -8/Materials -8/Storage -7/Factory (discovered 3 exits: *Fac x2 / [*Low]) -6/Factory (discovered 2 exits: *Fac x2) -5/Factory (discovered 3 exits: *Fac / Upp x2) -4/Factory (discovered 2 exits: *Res / *Upp) -4/Upper Caves -4/Upper Caves -4/Warlord -3/Proximity Caves History --------- Turn | Location | Event 4 | -11/Scrapyard | Discovered new exit (range 16) 76 | -11/Scrapyard | Entered Materials 310 | -10/Materials | Build established: Mutant 611 | -10/Materials | Discovered new exit (range 11) 612 | -10/Materials | Identified exit to Mines 800 | -10/Materials | Discovered new exit (range 14) 894 | -10/Materials | Repaired Lgt. Treads 921 | -10/Materials | Repaired Lgt. Treads 1184 | -10/Materials | Entered Mines 1185 | -10/Mines | Met a Derelict testing a Signal Generator 1190 | -10/Mines | Found Signal Generator 1254 | -10/Mines | Assembled infested the area 1259 | -10/Mines | Assisted by a Guerilla fighting off Assembled 1500 | -10/Mines | Core integrity fell below 50% 1506 | -10/Mines | Core integrity fell below 20% 1543 | -10/Mines | Lost 4 parts (2p2w) 1832 | -10/Mines | Discovered new exit (range 10) 1956 | -10/Mines | Discovered new exit (range 15) 2127 | -10/Mines | Learned location of Zion (-7) 2334 | -10/Mines | Found a damaged Exp. Sensor Array with a note attached 2339 | -10/Mines | Found Prototype Device 2405 | -10/Mines | Deemed a non-threat by the Exiles lab entrance 2407 | -10/Mines | Discovered new exit (range 5) 2501 | -10/Mines | Entered Exiles 2501 | -10/Exiles | Accompanied by 1 ally 2559 | -10/Exiles | Met 8R-AWN 2602 | -10/Exiles | Met EX-HEX 2667 | -10/Exiles | Met EX-BIN 2693 | -10/Exiles | Aligned with FarCom system 2696 | -10/Exiles | Given EX-Vault access code 2756 | -10/Exiles | Opened EX-Vault 2770 | -10/Exiles | Found Modified TNC 2819 | -10/Exiles | Warned to stay clear of 0b10 Research branches 2894 | -10/Exiles | Met EX-DEC 2978 | -10/Exiles | Discovered new exit (range 11) 2999 | -10/Exiles | Left Exiles lab with Modified TNC 2999 | -10/Exiles | Entered Mines 3085 | -9/Mines | Met a Derelict who couldn't figure out how to use a Trap Extractor 3341 | -9/Mines | Build established: Scavenger-Mutant 3568 | -9/Mines | Discovered new exit (range 9) 3587 | -9/Mines | Entered Materials 3587 | -8/Materials | Evolved 4 slots: Propulsion x2, Utility x2 3596 | -8/Materials | Identified Exp. Sensor Array 3880 | -8/Materials | Discovered new exit (range 8) 4256 | -8/Materials | Core integrity fell below 50% 4280 | -8/Materials | Lost 8 parts (1p4n2u1w) 4327 | -8/Materials | Destroyed 14 combat bots 4799 | -8/Materials | Build established: Mutant 5241 | -8/Materials | Core integrity fell below 20% 5366 | -8/Materials | Entered Storage 5396 | -8/Storage | Met a pair of Derelict thieves 5512 | -8/Storage | Discovered new exit (range 16) 5531 | -8/Storage | Entered Factory 5531 | -7/Factory | Evolved 2 slots: Utility x2 5604 | -7/Factory | Garrison activated, responded to threat 5629 | -7/Factory | Lost 4 parts (1p2n1u) 5758 | -7/Factory | Discovered new exit (range 3) 5894 | -7/Factory | Build established: Scavenger-Mutant 6041 | -7/Factory | Discovered new exit (range 7) 7684 | -7/Factory | Repaired Hrd. Medium Armor Plating 7711 | -7/Factory | Repaired Lgt. Treads+ 8218 | -7/Factory | Fabricated Imp. Cesium-ion Thruster (x1) 8655 | -7/Factory | Repaired Adv. Assault Cannon 8886 | -7/Factory | Build established: Mutant 9034 | -7/Factory | Fabricated Imp. Cesium-ion Thruster (x1) 9670 | -7/Factory | Discovered new exit (range 5) 9815 | -7/Factory | Entered another Factory area 9815 | -6/Factory | Evolved 2 slots: Utility x2 10516 | -6/Factory | Spotted B-75 Beast 10656 | -6/Factory | Fabricated Lance? 11241 | -6/Factory | Discovered new exit (range 11) 11248 | -6/Factory | Build established: Hacker-Scout 11317 | -6/Factory | Fabricated Sml. Storage Unit? 11408 | -6/Factory | Central database locked down 11682 | -6/Factory | Repaired Broken Imp. Cesium-ion Thruster 11863 | -6/Factory | Discovered new exit (range 20) 11939 | -6/Factory | Repaired Lgt. Fission Core 12081 | -6/Factory | Entered another Factory area 12081 | -5/Factory | Evolved 2 slots: Utility x2 12206 | -5/Factory | Repaired Lance+ 12250 | -5/Factory | Fabricated Cld. Cesium-ion Thruster? 12421 | -5/Factory | Identified exit to Upper Caves 12940 | -5/Factory | Fabricated Drone Bay? 12987 | -5/Factory | Fabricated Drone Bay? 13222 | -5/Factory | Garrison activated, responded to threat 13628 | -5/Factory | Repaired Nuclear Pulse Thruster+ 13700 | -5/Factory | Repaired Imp. Cesium-ion Thruster 14011 | -5/Factory | Build established: Hacker-Sprinter 14338 | -5/Factory | Build established: Hacker-Scout 14529 | -5/Factory | Discovered new exit (range 12) 14678 | -5/Factory | Entered another Factory area 14678 | -4/Factory | Accompanied by 1 ally 14678 | -4/Factory | Evolved 2 slots: Propulsion x1, Utility x1 14778 | -4/Factory | Found Unknown Device 14778 | -4/Factory | Identified Quantum Capacitor 14784 | -4/Factory | Lost 3 parts (2n1w) 14888 | -4/Factory | Discovered new exit (range 2) 14892 | -4/Factory | Found Prototype Processor 14892 | -4/Factory | Identified Exp. Signal Interpreter 14896 | -4/Factory | Identified exit to Research 15026 | -4/Factory | Central database locked down 15076 | -4/Factory | Fabricated Lrn. Missile Launcher? 15107 | -4/Factory | Repaired Lance+ 15309 | -4/Factory | Fabricated Cld. Cesium-ion Thruster? 15311 | -4/Factory | Unchained authorized (CL-0N3) 15463 | -4/Factory | Discovered new exit (range 23) 15472 | -4/Factory | K-01 Serf reconstituted as Executioner 15485 | -4/Factory | Entered Upper Caves 15644 | -4/Upper Caves | Spotted B-86 Titan 15696 | -4/Upper Caves | Unchained authorized (CL-0N3) 15698 | -4/Upper Caves | Attacked by a delusional Derelict stockpiling parts 15754 | -4/Upper Caves | Attracted the attention of an 0b10 checkpoint 15755 | -4/Upper Caves | Learned Research emergency access door positions 15785 | -4/Upper Caves | Encountered a Warlord checkpoint 15848 | -4/Upper Caves | Spotted Thunder 15890 | -4/Upper Caves | Discovered new exit (range 14) 15892 | -4/Upper Caves | Learned 8 Research zone layouts 15895 | -4/Upper Caves | Entered another Upper Caves area 15926 | -4/Upper Caves | Ambushed by research squad 15936 | -4/Upper Caves | P-70 Sage assimilated allied WO-NDL(S) 15945 | -4/Upper Caves | Spotted B-86 Titan 15952 | -4/Upper Caves | Discovered new exit (range 7) 15953 | -4/Upper Caves | Entered Warlord 15971 | -4/Warlord | System corruption cleaned by Quarantine Array 15982 | -4/Warlord | Lost 4 parts (1p2n1u) 16027 | -4/Warlord | Build established: Hacker-Sprinter 16302 | -4/Warlord | Found Prototype Special Weapon 16302 | -4/Warlord | Identified RU-N14's Throwing Claymores v3 16306 | -4/Warlord | Found RU-N14's Throwing Claymores v3 16307 | -4/Warlord | Found RU-N14's Throwing Claymores v3 16309 | -4/Warlord | Found RU-N14's Throwing Claymores v3 16310 | -4/Warlord | Found RU-N14's Throwing Claymores v3 16311 | -4/Warlord | Found RU-N14's Throwing Claymores v3 16319 | -4/Warlord | Visited the Vortex Lab 16324 | -4/Warlord | Warlord's base attacked by MAIN.C 16442 | -4/Warlord | Met Warlord 16646 | -4/Warlord | Lost 10 allies 16674 | -4/Warlord | Warlord forces counterattacked 16689 | -4/Warlord | Spotted B-90 Cyclops 16689 | -4/Warlord | Spotted B-86 Titan 16724 | -4/Warlord | Spotted Striker 16726 | -4/Warlord | Discovered new exit (range 15) 16734 | -4/Warlord | Entered Proximity Caves 16741 | -3/Proximity Caves | Lost 3 allies 16762 | -3/Proximity Caves | Lost 7 parts (1p2n4u) 17002 | -3/Proximity Caves | Received a Behemoth hack from an annoying Tinkerer 17025 | -3/Proximity Caves | Build established: Hacker-Mutant 17276 | -3/Proximity Caves | Core integrity fell below 50% 17324 | -3/Proximity Caves | Core integrity fell below 20% 17342 | -3/Proximity Caves | Destroyed by S-43 Plague with Heavy Machine Gun Last Messages --------------- 17287_ Acquired 10 matter. 17288_ Acquired Xenon Bombardment Thruster+. 17301_ Xenon Bombardment Thruster+ destroyed. 17302_ Lrn. Terrain Scanner destroyed. 17303_ System Shield destroyed. 17309_ Xenon Bombardment Thruster+ destroyed. 17321_ S-43 Plague destroyed. 17327_ Xenon Bombardment Thruster+ fries itself beyond repair. 17331_ S-43 Plague destroyed. 17332_ Acquired Xenon Bombardment Thruster+. 17333_ Lance+ destroyed. 17334_ Xenon Bombardment Thruster+ fries itself beyond repair. 17334_ Acquired Lgt. Antimatter Reactor+. 17336_ Acquired Xenon Bombardment Thruster+. 17337_ Xenon Bombardment Thruster+ destroyed. 17338_ Hvy. Machine Gun fries itself beyond repair. [Achievement: This Is Interesting...] Map ----- +----------------------------------------------------+ | #?######?### ####?#### ? ???????????????? | | ###??###### #####?### ?? ???????????????? | | ?##?#?#### ####?#### #?#######?????????????? | | #?#### ####?## ###??# ##?????????????? | | ????## ## ###### ###### ##????????????? | | ###??## ### ## * #????????????? | | ?#??#?## ?## % #????????????? | | ???????## ##?# ## ## ##???????? ?? | | ????????##?#?# #### ### ####### #? | | ???????#?????###?## #####?# #? | | ?????#????????#### #?????# #? | | ?#???#??#????## ### #?##??# #### ? | | ?????????????# ##?#### #??# #????????? | | ?????????????# #####???## #?## ##????????? | | #???#???????#####??##?#?## #?# #?????????? | | ?#????#####???#??????????# ### ##?????????? | | ?????## ######????????## #?# ##??????????? | | ?????# %##????????# ### ##???????????? | | ?????# #?????##?## ### #????????????? | | ?????# #???#????# ## ###??????????? | | ?????## %##???????# ### ???????? | | ??????### [ ##??????# #????? | | ???#????## ######### ????? | | ?????????## ## #### ????? | | ??????????# s ### ## ????? | | ??????????# @ #?# ### ????? | | ??????????# #? #???????? | | ??????????### ####### ### #?##???????? | | ????????????######?????## ##?## #??????????? | | ????????????????????????####????#######??????????? | | ?????????????????????????????????????????????????? | | ?????????????????????????????????????????????????? | | ?????????????????????????????????????????????????? | | ?????????????????????????????????????????????????? | | ?????????????????????????????????????????????????? | | ?????????????????????????????????????????????????? | | ?????????????????????????????????????????????????? | | ?????????????????????????????????????????????????? | | ?????????????????????????????????????????????????? | | ?????????????????????????????????????????????????? | | ?????????????????????????????????????????????????? | | ?????????????????????????????????????????????????? | | ?????????????????????????????????????????????????? | | ?????????????????????????????????????????????????? | | ?????????????????????????????????????????????????? | | | | | | | | | | | +----------------------------------------------------+ Best States ------------- Heat Dissipation 61 Energy Generation 25 Energy Capacity 315 Matter Stores 300 Matter Capacity 300 Sight Range 16 Terrain Scan Range 24 Terrain Scan Density 535 ECM Strength 1 Jamming Range 16 Cloak Strength 3 Power Amplification 20 Armor Coverage 825 Resistance: KI 20 Power Shielding 66 Propulsion Shielding 66 Weapon Cycling 15 Evasion (%) 65 Targeting Accuracy 6 Melee Accuracy 8 Core Analysis 6 Recoil Reduction 4 Energy Filtering 30 Particle Charging 20 Offensive Hacking 26 Defensive Hacking 32 Item Schematics ----------------- Imp. Airjet | -7/Factory | Hacked Imp. Cesium-ion Thruster | -7/Factory | Scanalyzed Mic. Nuclear Core | -7/Factory | Scanalyzed Lance | -6/Factory | Hacked Sml. Storage Unit | -6/Factory | Hacked Hacking Suite | -6/Factory | Hacked Xenon Bombardment Thruster | -6/Factory | Hacked Drone Bay | -6/Factory | Scanalyzed Cld. Cesium-ion Thruster | -6/Factory | Scanalyzed Lrn. Missile Launcher | -6/Factory | Scanalyzed Force Field | -5/Factory | Scanalyzed Nuclear Pulse Thruster | -5/Factory | Scanalyzed Lgt. Fission Core | -5/Factory | Scanalyzed Imp. Field Recycling Unit | -5/Factory | Scanalyzed Imp. Trap Scanner | -5/Factory | Scanalyzed System Shield | -5/Factory | Scanalyzed Adv. Surge Thruster | -4/Factory | Scanalyzed Mic. Fission Core | -4/Factory | Scanalyzed ECM Suite | -4/Factory | Scanalyzed Reaction Control System | -4/Factory | Scanalyzed Robot Schematics ------------------ None Fabricated ------------ Imp. Cesium-ion Thruster | x1 | -7/Factory Imp. Cesium-ion Thruster | x1 | -7/Factory Lance | x2 | -6/Factory Sml. Storage Unit | x1 | -6/Factory Cld. Cesium-ion Thruster | x1 | -5/Factory Drone Bay | x1 | -5/Factory Drone Bay | x1 | -5/Factory Lrn. Missile Launcher | x1 | -4/Factory Cld. Cesium-ion Thruster | x1 | -4/Factory Repaired ---------- Lgt. Treads | 42% | -10/Materials Lgt. Treads | 48% | -10/Materials Hrd. Medium Armor Plating | 18% | -7/Factory Lgt. Treads | 23% | -7/Factory Adv. Assault Cannon | 72% | -7/Factory Imp. Cesium-ion Thruster | 73% | -6/Factory | Broken Lgt. Fission Core | 45% | -6/Factory Lance | 64% | -5/Factory Nuclear Pulse Thruster | 36% | -5/Factory Imp. Cesium-ion Thruster | 20% | -5/Factory Lance | 40% | -4/Factory Studied --------- Wheel | -8/Materials | Hacked Com. Wheel | -8/Materials | Hacked Concussive RPG | -8/Materials | Hacked Lgt. Treads | -7/Factory | Hacked Gauss Cannon | -7/Factory | Hacked Mic. Nuclear Core | -7/Factory | Hacked Plasma Cannon | -7/Factory | Hacked Hvy. Missile Launcher | -7/Factory | Hacked Powered Hammer | -7/Factory | Hacked Adv. Assault Cannon | -7/Factory | Hacked Med. Treads | -7/Factory | Hacked Xenon Bombardment Thruster | -7/Factory | Hacked Nuclear Pulse Thruster | -6/Factory | Hacked Lgt. Fission Core | -5/Factory | Hacked Lance | -5/Factory | Hacked Lrn. Missile Launcher | -5/Factory | Hacked Lgt. Antimatter Reactor | -4/Factory | Hacked Field Propulsion Array | -4/Factory | Hacked Alien Tech Used ----------------- None Achievements -------------- A Powerful Ally? Botjacking Charge!!! Insider Info This Is Interesting... Challenges ------------ None Game ------ Seed CommAblativeLeg Manual? 0 Play Time 04:38:49 Cumulative 86.7 hours Start 2026.01.08 @ 16:48:49 End 2026.01.09 @ 22:09:29 Sessions 9 Manual Loads 0 Difficulty Rogue Special Mode None Game No. 40 Rogue 37 Adventurer 3 Explorer 0 Win Type - Total 0 Types 0/0/0/0/0/0/0/0/0/0 Lore% 26 Gallery% 43 Achievement% 32 Wizard Run 0 Options --------- Layout 1 ASCII 0 Keyboard 0 Movement Numpad Keybinds 0 Fullscreen 1 Font 24/Smallcaps Map View 50x35 Zoom Use 0% Tactical HUD 1 Map Filters NONE Filters NONE Steam 1 RUN: 9579e8a6-817a-45f4-8749-bf272bb8b707